fUSD/lending_fUSD_20250104
["ID","MTS","AMOUNT","RATE_DAILY","PERIOD"]
[347657767,1736028634459,-500.0,9.998e-05,2]
[347657768,1736028634468,-500.0,9.998e-05,2]
[347657769,1736028634477,-500.0,9.998e-05,2]
[347657770,1736028634486,-500.0,9.998e-05,2]
[347657771,1736028634495,-500.0,9.998e-05,2]
[347657772,1736028634504,-500.0,9.998e-05,2]
[347657773,1736028634514,-500.0,9.998e-05,2]
[347657774,1736028634523,-500.0,9.998e-05,2]
[347657775,1736028634532,-500.0,9.998e-05,2]
[347657776,1736028634541,-500.0,9.998e-05,2]
[347657777,1736028634550,-457.99597223,9.998e-05,2]
[347657778,1736028634561,-500.0,9.998e-05,2]
[347657779,1736028634570,-500.0,9.998e-05,2]
[347657780,1736028634578,-500.0,9.998e-05,2]
[347657781,1736028634587,-500.0,9.998e-05,2]
[347657782,1736028634597,-500.0,9.998e-05,2]
[347657783,1736028634606,-500.0,9.998e-05,2]
[347657784,1736028634615,-500.0,9.998e-05,2]
[347657785,1736028634624,-500.0,9.998e-05,2]
[347657786,1736028634633,-500.0,9.998e-05,2]
[347657787,1736028634642,-500.0,9.998e-05,2]
[347657788,1736028634651,-500.0,9.998e-05,2]
[347657789,1736028634660,-500.0,9.998e-05,2]
[347657790,1736028634669,-500.0,9.998e-05,2]
[347657791,1736028634679,-500.0,9.998e-05,2]
[347657792,1736028634688,-500.0,9.998e-05,2]
[347657793,1736028634697,-500.0,9.998e-05,2]
[347657794,1736028634706,-500.0,9.998e-05,2]
[347657795,1736028634716,-500.0,9.998e-05,2]
[347657796,1736028634725,-500.0,9.998e-05,2]
[347657797,1736028634734,-500.0,9.998e-05,2]
[347657798,1736028634743,-500.0,9.998e-05,2]
[347657799,1736028634751,-500.0,9.998e-05,2]
[347657800,1736028634760,-500.0,9.998e-05,2]
[347657801,1736028634769,-500.0,9.998e-05,2]
[347657802,1736028634778,-500.0,9.998e-05,2]
[347657803,1736028634787,-500.0,9.998e-05,2]
[347657804,1736028634796,-500.0,9.998e-05,2]
[347657805,1736028634805,-500.0,9.998e-05,2]
[347657806,1736028634813,-500.0,9.998e-05,2]
[347657807,1736028634823,-500.0,9.998e-05,2]
[347657808,1736028634832,-500.0,9.998e-05,2]
[347657809,1736028634841,-500.0,9.998e-05,2]
[347657810,1736028634850,-500.0,9.998e-05,2]
[347657811,1736028634859,-500.0,9.998e-05,2]
[347657812,1736028634868,-500.0,9.998e-05,2]
[347657813,1736028634877,-500.0,9.998e-05,2]
[347657814,1736028634887,-500.0,9.998e-05,2]
[347657815,1736028634896,-500.0,9.998e-05,2]
[347657816,1736028634905,-500.0,9.998e-05,2]
[347657817,1736028634914,-500.0,9.998e-05,2]
[347657818,1736028634923,-500.0,9.998e-05,2]
[347657819,1736028634933,-500.0,9.998e-05,2]
[347657820,1736028634942,-500.0,9.998e-05,2]
[347657821,1736028634950,-500.0,9.998e-05,2]
[347657822,1736028634960,-500.0,9.998e-05,2]
[347657823,1736028634969,-500.0,9.998e-05,2]
[347657824,1736028634977,-500.0,9.998e-05,2]
[347657825,1736028634986,-500.0,9.998e-05,2]
[347657826,1736028634995,-500.0,9.998e-05,2]
[347657827,1736028635004,-500.0,9.998e-05,2]
[347657828,1736028635013,-500.0,9.998e-05,2]
[347657829,1736028635022,-500.0,9.998e-05,2]
[347657830,1736028635031,-500.0,9.998e-05,2]
[347657831,1736028635039,-500.0,9.998e-05,2]
[347657832,1736028635048,-500.0,9.998e-05,2]
[347657833,1736028635058,-500.0,9.998e-05,2]
[347657834,1736028635067,-500.0,9.998e-05,2]
[347657835,1736028635077,-500.0,9.998e-05,2]
[347657836,1736028635086,-500.0,9.998e-05,2]
[347657837,1736028635095,-500.0,9.998e-05,2]
[347657838,1736028635105,-500.0,9.998e-05,2]
[347657839,1736028635114,-500.0,9.998e-05,2]
[347657840,1736028635123,-500.0,9.998e-05,2]
[347657841,1736028635132,-500.0,9.998e-05,2]
[347657842,1736028635141,-500.0,9.998e-05,2]
[347657843,1736028635150,-500.0,9.998e-05,2]
[347657844,1736028635159,-500.0,9.998e-05,2]
[347657845,1736028635168,-500.0,9.998e-05,2]
[347657846,1736028635178,-500.0,9.998e-05,2]
[347657847,1736028635188,-500.0,9.998e-05,2]
[347657848,1736028635197,-500.0,9.998e-05,2]
[347657849,1736028635206,-500.0,9.998e-05,2]
[347657850,1736028635215,-500.0,9.998e-05,2]
[347657851,1736028635224,-500.0,9.998e-05,2]
[347657852,1736028635233,-230.51063603,9.998e-05,2]
[347657853,1736028635242,-500.0,9.998e-05,2]
[347657854,1736028635251,-500.0,9.998e-05,2]
[347657855,1736028635259,-500.0,9.998e-05,2]
[347657856,1736028635268,-500.0,9.998e-05,2]
[347657857,1736028635277,-500.0,9.998e-05,2]
[347657858,1736028635286,-500.0,9.998e-05,2]
[347657859,1736028635296,-500.0,9.998e-05,2]
[347657860,1736028635305,-500.0,9.998e-05,2]
[347657861,1736028635314,-500.0,9.998e-05,2]
[347657862,1736028635323,-500.0,9.998e-05,2]
[347657863,1736028635332,-500.0,9.998e-05,2]
[347657864,1736028635341,-500.0,9.998e-05,2]
[347657865,1736028635350,-500.0,9.998e-05,2]
[347657866,1736028635359,-500.0,9.998e-05,2]
[347657867,1736028635369,-500.0,9.998e-05,2]
[347657868,1736028635378,-500.0,9.998e-05,2]
[347657869,1736028635388,-500.0,9.998e-05,2]
[347657870,1736028635397,-500.0,9.998e-05,2]
[347657871,1736028635406,-500.0,9.998e-05,2]
[347657872,1736028635416,-500.0,9.998e-05,2]
[347657873,1736028635425,-500.0,9.998e-05,2]
[347657874,1736028635434,-500.0,9.998e-05,2]
[347657875,1736028635443,-500.0,9.998e-05,2]
[347657876,1736028635452,-500.0,9.998e-05,2]
[347657877,1736028635460,-500.0,9.998e-05,2]
[347657878,1736028635471,-352.39099956,9.998e-05,2]
[347657879,1736028635480,-500.0,9.998e-05,2]
[347657880,1736028635490,-500.0,9.998e-05,2]
[347657881,1736028635499,-500.0,9.998e-05,2]
[347657882,1736028635508,-500.0,9.998e-05,2]
[347657883,1736028635518,-500.0,9.998e-05,2]
[347657884,1736028635527,-500.0,9.998e-05,2]
[347657885,1736028635535,-500.0,9.998e-05,2]
[347657886,1736028635545,-500.0,9.998e-05,2]
[347657887,1736028635554,-500.0,9.998e-05,2]
[347657888,1736028635563,-500.0,9.998e-05,2]
[347657889,1736028635573,-500.0,9.998e-05,2]
[347657890,1736028635583,-500.0,9.998e-05,2]
[347657891,1736028635593,-500.0,9.998e-05,2]
[347657892,1736028635602,-500.0,9.998e-05,2]
[347657893,1736028635611,-500.0,9.998e-05,2]
[347657894,1736028635619,-500.0,9.998e-05,2]
[347657895,1736028635629,-500.0,9.998e-05,2]
[347657896,1736028635637,-500.0,9.998e-05,2]
[347657897,1736028635646,-500.0,9.998e-05,2]
[347657898,1736028635655,-500.0,9.998e-05,2]
[347657899,1736028635664,-500.0,9.998e-05,2]
[347657900,1736028635674,-500.0,9.998e-05,2]
[347657901,1736028635683,-500.0,9.999e-05,2]
[347657902,1736028635691,-500.0,9.999e-05,2]
[347657903,1736028635701,-500.0,9.999e-05,2]
[347657904,1736028635709,-500.0,9.999e-05,2]
[347657905,1736028635719,-500.0,9.999e-05,2]
[347657906,1736028635727,-500.0,9.999e-05,2]
[347657907,1736028635736,-500.0,9.999e-05,2]
[347657908,1736028635745,-500.0,9.999e-05,2]
[347657909,1736028635754,-500.0,9.999e-05,2]
[347657910,1736028635765,-500.0,9.999e-05,2]
[347657911,1736028635774,-500.0,9.999e-05,2]
[347657912,1736028635783,-500.0,9.999e-05,2]
[347657913,1736028635792,-500.0,9.999e-05,2]
[347657914,1736028635801,-530.08,9.999e-05,2]
[347657915,1736028635810,-500.0,9.999e-05,2]
[347657916,1736028635820,-500.0,9.999e-05,2]
[347657917,1736028635829,-657.972,9.999e-05,2]
[347657918,1736028635843,-212.94143247,9.999e-05,2]
[347657919,1736028635851,-500.0,9.999e-05,2]
[347657920,1736028635861,-500.0,9.999e-05,2]
[347657921,1736028635870,-500.0,9.999e-05,2]
[347657922,1736028635882,-500.0,9.999e-05,2]
[347657923,1736028635891,-500.0,9.999e-05,2]
[347657924,1736028635900,-500.0,9.999e-05,2]
[347657925,1736028635909,-500.0,9.999e-05,2]
[347657926,1736028635919,-500.0,9.999e-05,2]
[347657927,1736028635929,-500.0,9.999e-05,2]
[347657928,1736028635938,-500.0,9.999e-05,2]
[347657929,1736028635947,-500.0,9.999e-05,2]
[347657930,1736028635956,-500.0,9.999e-05,2]
[347657931,1736028635965,-500.0,9.999e-05,2]
[347657932,1736028635974,-500.0,9.999e-05,2]
[347657933,1736028635982,-500.0,9.999e-05,2]
[347657934,1736028635992,-500.0,9.999e-05,2]
[347657935,1736028636001,-500.0,9.999e-05,2]
[347657936,1736028636010,-500.0,9.999e-05,2]
[347657937,1736028636020,-500.0,9.999e-05,2]
[347657938,1736028636028,-500.0,9.999e-05,2]
[347657939,1736028636038,-500.0,9.999e-05,2]
[347657940,1736028636047,-500.0,9.999e-05,2]
[347657941,1736028636055,-500.0,9.999e-05,2]
[347657942,1736028636064,-500.0,9.999e-05,2]
[347657943,1736028636073,-500.0,9.999e-05,2]
[347657944,1736028636083,-500.0,9.999e-05,2]
[347657945,1736028636092,-500.0,9.999e-05,2]
[347657946,1736028636101,-500.0,9.999e-05,2]
[347657947,1736028636110,-500.0,9.999e-05,2]
[347657948,1736028636120,-500.0,9.999e-05,2]
[347657949,1736028636129,-500.0,9.999e-05,2]
[347657950,1736028636139,-500.0,9.999e-05,2]
[347657951,1736028636148,-500.0,9.999e-05,2]
[347657952,1736028636157,-500.0,9.999e-05,2]
[347657953,1736028636167,-500.0,9.999e-05,2]
[347657954,1736028636176,-500.0,9.999e-05,2]
[347657955,1736028636186,-500.0,9.999e-05,2]
[347657956,1736028636195,-500.0,9.999e-05,2]
[347657957,1736028636205,-500.0,9.999e-05,2]
[347657958,1736028636214,-500.0,9.999e-05,2]
[347657959,1736028636225,-500.0,9.999e-05,2]
[347657960,1736028636234,-500.0,9.999e-05,2]
[347657961,1736028636243,-500.0,9.999e-05,2]
[347657962,1736028636253,-500.0,9.999e-05,2]
[347657963,1736028636262,-500.0,9.999e-05,2]
[347657964,1736028636271,-500.0,9.999e-05,2]
[347657965,1736028636281,-628.91911024,9.999e-05,2]
[347657966,1736028636290,-500.0,9.999e-05,2]
[347657967,1736028636299,-500.0,9.999e-05,2]
[347657968,1736028636308,-500.0,9.999e-05,2]
[347657969,1736028636317,-500.0,9.999e-05,2]
[347657970,1736028636326,-500.0,9.999e-05,2]
[347657971,1736028636335,-500.0,9.999e-05,2]
[347657972,1736028636345,-500.0,9.999e-05,2]
[347657973,1736028636354,-500.0,9.999e-05,2]
[347657974,1736028636363,-500.0,9.999e-05,2]
[347657975,1736028636372,-500.0,9.999e-05,2]
[347657976,1736028636381,-500.0,9.999e-05,2]
[347657977,1736028636390,-500.0,9.999e-05,2]
[347657978,1736028636399,-500.0,9.999e-05,2]
[347657979,1736028636408,-500.0,9.999e-05,2]
[347657980,1736028636417,-500.0,9.999e-05,2]
[347657981,1736028636426,-500.0,9.999e-05,2]
[347657982,1736028636435,-500.0,9.999e-05,2]
[347657983,1736028636445,-883.39,9.999e-05,2]
[347657984,1736028636454,-500.0,9.999e-05,2]
[347657985,1736028636463,-500.0,9.999e-05,2]
[347657986,1736028636472,-500.0,9.999e-05,2]
[347657987,1736028636481,-754.44,9.999e-05,2]
[347657988,1736028636490,-500.0,9.999e-05,2]
[347657989,1736028636499,-500.0,9.999e-05,2]
[347657990,1736028636654,-500.0,9.999e-05,2]
[347657991,1736028636664,-500.0,9.999e-05,2]
[347657992,1736028636674,-500.0,9.999e-05,2]
[347657993,1736028636684,-500.0,9.999e-05,2]
[347657994,1736028636693,-500.0,9.999e-05,2]
[347657995,1736028636702,-500.0,9.999e-05,2]
[347657996,1736028636711,-863.34,9.999e-05,2]
[347657997,1736028636720,-500.0,9.999e-05,2]
[347657998,1736028636729,-500.0,9.999e-05,2]
[347657999,1736028636738,-500.0,9.999e-05,2]
[347658000,1736028636748,-500.0,9.999e-05,2]
[347658001,1736028636757,-500.0,9.999e-05,2]
[347658002,1736028636767,-500.0,9.999e-05,2]
[347658003,1736028636776,-500.0,9.999e-05,2]
[347658004,1736028636785,-573.75,9.999e-05,2]
[347658005,1736028636795,-500.0,9.999e-05,2]
[347658006,1736028636804,-1012.63,9.999e-05,2]
[347658007,1736028636813,-500.0,9.999e-05,2]
[347658008,1736028636822,-500.0,9.999e-05,2]
[347658009,1736028636831,-500.0,9.999e-05,2]
[347658010,1736028636840,-500.0,9.999e-05,2]
[347658011,1736028636850,-527.0,0.0001,2]
[347658012,1736028636859,-150.0,0.0001,2]
[347658013,1736028636868,-4425825.42075729,0.0001,2]
[347658014,1736028636947,-617.25987211,0.0001,2]
[347658015,1736028636958,-1782.57,0.0001,2]
[347658016,1736028636969,-2515.94290178,0.0001,2]
[347658017,1736028637010,-500.0,9.897e-05,2]
[347658018,1736028637019,-500.0,9.897e-05,2]
[347658019,1736028637028,-7409.66902053,0.0001,2]
[347658020,1736028637039,-362.94287197,0.0001,2]
[347658021,1736028637072,-500.0,9.897e-05,2]
[347658022,1736028637082,-2138.86621395,0.0001,2]
[347658024,1736028638474,-500.0,9.897e-05,2]
[347658025,1736028638484,-500.0,9.897e-05,2]
[347658026,1736028638493,-500.0,9.897e-05,2]
[347658027,1736028638503,-500.0,9.973e-05,2]
[347658028,1736028638513,-500.0,9.999e-05,2]
[347658029,1736028638524,-9426.46638547,0.0001,2]
[347658030,1736028638559,-1860.04352126,0.0001,2]
[347658049,1736028640298,-500.0,9.999e-05,2]
[347658050,1736028640308,-212.5805283,0.0001,2]
[347658051,1736028640322,-8193.00488679,0.0001,2]
[347658052,1736028640340,-49139.68472909,0.0001,2]
[347658053,1736028640358,-2546.684949,0.0001,2]
[347658054,1736028640522,-451.5099872,0.0001,2]
[347658055,1736028640684,-491.2881889,9.998e-05,2]
[347658056,1736028640695,-8.7118111,9.998e-05,2]
[347658057,1736028640706,-2116.22979607,0.0001,2]
[347658059,1736028643338,-500.0,9.897e-05,2]
[347658060,1736028643348,-500.0,9.897e-05,2]
[347658061,1736028643358,-836.16629,0.0001,2]
[347658062,1736028643370,-679.30499915,0.0001,2]
[347658068,1736028643423,-1868.53283797,0.0001,2]
[347658071,1736028643434,-52979.90415979,0.0001,2]
[347658073,1736028643446,-445.10019242,0.0001,2]
[347658075,1736028643456,-241350.000005,0.0001,2]
[347658077,1736028643467,-572.4865023,0.0001,2]
[347658083,1736028643584,-1132.21983791,0.0001,2]
[347658084,1736028643596,-1938.45550524,0.0001,2]
[347658085,1736028643611,-5255.90473227,0.0001,2]
[347658086,1736028643623,-6224.08578409,0.0001,2]
[347658087,1736028643636,-282.07,0.0001,2]
[347658088,1736028643647,-463.59,0.0001,2]
[347658089,1736028643663,-74552.24274399,0.0001,2]
[347658090,1736028646390,-500.0,9.899e-05,2]
[347658091,1736028646399,-500.0,9.998e-05,2]
[347658092,1736028646409,-500.0,9.999e-05,2]
[347658093,1736028646419,-540.0,0.0001,2]
[347658094,1736028646428,-22792.78590849,0.0001,2]
[347658095,1736028646697,-87.46965581,0.0001,2]
[347658096,1736028646710,-4848.3864252,0.0001,2]
[347658099,1736028647633,-34909.57931833,0.0001,2]
[347658100,1736028647645,-4507.18095193,0.0001,2]
[347658101,1736028647698,-500.0,9.897e-05,2]
[347658102,1736028647709,-2965.46992,0.0001,2]
[347658103,1736028647795,-500.0,9.898e-05,2]
[347658104,1736028647805,-29099.9998,0.0001,2]
[347658105,1736028647817,-68973.200001,0.0001,2]
[347658106,1736028705811,3000.0,0.0002,120]
[347658107,1736028719546,164.45,7.389e-05,2]
[347658108,1736028725840,33.902,7.397e-05,2]
[347658109,1736029002713,309.0,9.897e-05,20]
[347658110,1736029047180,1000.0,0.00018,90]
[347658139,1736029634960,1830.0,5.479e-05,7]
[347658140,1736029715540,285.22477492,5.452e-05,2]
[347658156,1736029831541,-170.14,7.397e-05,2]
[347658157,1736029831553,-170.14,8.104e-05,2]
[347658158,1736029831562,-869.216,8.219e-05,2]
[347658159,1736029831573,-644.23637847,8.219e-05,2]
[347658160,1736029831586,-59.96762153,8.219e-05,2]
[347658161,1736029831595,-1300.0,8.22e-05,2]
[347658162,1736029831605,-250.0,8.449e-05,2]
[347658163,1736029831614,-477.688095,8.606e-05,2]
[347658164,1736029831625,-250.0,8.649e-05,2]
[347658165,1736029831634,-500.0,8.766e-05,2]
[347658166,1736029831644,-170.14,8.81e-05,2]
[347658167,1736029831660,-200.0,8.849e-05,2]
[347658168,1736029831671,-4098.79,8.905e-05,2]
[347658169,1736029831680,-182.84,8.978e-05,2]
[347658170,1736029831691,-250.0,8.98e-05,2]
[347658171,1736029831700,-161.48,8.996e-05,2]
[347658172,1736029831712,-300.0,8.999e-05,2]
[347658173,1736029831722,-150.0,9e-05,2]
[347658174,1736029831732,-210.29916374,9e-05,2]
[347658175,1736029831743,-263.85,9.022e-05,2]
[347658176,1736029831752,-148.31699458,9.035e-05,2]
[347658177,1736029831765,-984.27037555,9.035e-05,2]
[347658178,1736029831778,-20395.9,9.035e-05,2]
[347658179,1736029831791,-2371.51262987,9.035e-05,2]
[347658180,1736029831802,-182.84,9.088e-05,2]
[347658181,1736029831811,-680.23912656,9.091e-05,2]
[347658182,1736029831824,-319.76087344,9.091e-05,2]
[347658183,1736029831833,-182.84,9.168e-05,2]
[347658184,1736029831843,-182.84,9.178e-05,2]
[347658192,1736029832036,-150.0,9.178e-05,2]
[347658194,1736029832047,-150.0,9.178e-05,2]
[347658196,1736029832056,-150.0,9.278e-05,2]
[347658198,1736029832065,-436.65,9.278e-05,2]
[347658200,1736029832076,-182.84,9.278e-05,2]
[347658202,1736029832085,-150.0,9.278e-05,2]
[347658204,1736029832094,-300.0,9.278e-05,2]
[347658206,1736029832103,-186.03,9.393e-05,2]
[347658208,1736029832112,-200.0,9.408e-05,2]
[347658210,1736029832122,-150.0,9.426e-05,2]
[347658212,1736029832131,-445.931,9.5e-05,2]
[347658214,1736029832140,-365.61,9.5e-05,2]
[347658216,1736029832149,-179.09,9.5e-05,2]
[347658218,1736029832159,-170.14,9.516e-05,2]
[347658220,1736029832167,-1300.0,9.59e-05,2]
[347658222,1736029832177,-676.05114348,9.612e-05,2]
[347658224,1736029832187,-10482.8132375,9.613e-05,2]
[347658226,1736029832197,-6840.60940358,9.613e-05,2]
[347658228,1736029832206,-20112.0,9.703e-05,2]
[347658230,1736029832215,-23611.2217,9.799e-05,2]
[347658231,1736029832224,-10000.0,9.8e-05,2]
[347658233,1736029832233,-1239.233,9.81e-05,2]
[347658235,1736029832242,-500.0,9.897e-05,2]
[347658237,1736029832252,-500.0,9.897e-05,2]
[347658239,1736029832260,-500.0,9.897e-05,2]
[347658241,1736029832269,-500.0,9.897e-05,2]
[347658243,1736029832278,-500.0,9.897e-05,2]
[347658245,1736029832287,-500.0,9.897e-05,2]
[347658247,1736029832296,-500.0,9.897e-05,2]
[347658249,1736029832306,-500.0,9.897e-05,2]
[347658251,1736029832316,-500.0,9.897e-05,2]
[347658253,1736029832325,-500.0,9.897e-05,2]
[347658255,1736029832334,-500.0,9.897e-05,2]
[347658257,1736029832344,-500.0,9.897e-05,2]
[347658259,1736029832353,-500.0,9.897e-05,2]
[347658261,1736029832363,-500.0,9.897e-05,2]
[347658263,1736029832372,-500.0,9.897e-05,2]
[347658265,1736029832380,-500.0,9.897e-05,2]
[347658267,1736029832389,-500.0,9.897e-05,2]
[347658269,1736029832398,-500.0,9.897e-05,2]
[347658271,1736029832408,-500.0,9.897e-05,2]
[347658273,1736029832417,-500.0,9.897e-05,2]
[347658275,1736029832426,-500.0,9.897e-05,2]
[347658277,1736029832435,-500.0,9.897e-05,2]
[347658279,1736029832444,-500.0,9.897e-05,2]
[347658281,1736029832454,-500.0,9.897e-05,2]
[347658283,1736029832463,-500.0,9.897e-05,2]
[347658285,1736029832472,-500.0,9.897e-05,2]
[347658287,1736029832481,-500.0,9.897e-05,2]
[347658289,1736029832490,-610.505315,9.897e-05,2]
[347658291,1736029832499,-500.0,9.897e-05,2]
[347658293,1736029832508,-500.0,9.897e-05,2]
[347658295,1736029832517,-500.0,9.897e-05,2]
[347658297,1736029832526,-500.0,9.897e-05,2]
[347658299,1736029832535,-500.0,9.897e-05,2]
[347658300,1736029832545,-500.0,9.897e-05,2]
[347658302,1736029832555,-500.0,9.897e-05,2]
[347658304,1736029832565,-500.0,9.897e-05,2]
[347658306,1736029832575,-500.0,9.897e-05,2]
[347658308,1736029832584,-500.0,9.897e-05,2]
[347658310,1736029832593,-500.0,9.898e-05,2]
[347658312,1736029832603,-846.58,9.898e-05,2]
[347658314,1736029832612,-723.01,9.898e-05,2]
[347658316,1736029832621,-500.0,9.898e-05,2]
[347658318,1736029832630,-500.0,9.898e-05,2]
[347658320,1736029832640,-827.37,9.898e-05,2]
[347658321,1736029832649,-970.43,9.898e-05,2]
[347658323,1736029832658,-500.0,9.898e-05,2]
[347658325,1736029832667,-500.0,9.898e-05,2]
[347658327,1736029832676,-500.0,9.898e-05,2]
[347658329,1736029832686,-500.0,9.898e-05,2]
[347658331,1736029832695,-500.0,9.898e-05,2]
[347658333,1736029832704,-500.0,9.898e-05,2]
[347658335,1736029832713,-500.0,9.899e-05,2]
[347658337,1736029832722,-500.0,9.899e-05,2]
[347658339,1736029832731,-500.0,9.899e-05,2]
[347658341,1736029832740,-500.0,9.899e-05,2]
[347658343,1736029832750,-500.0,9.899e-05,2]
[347658345,1736029832758,-500.0,9.899e-05,2]
[347658346,1736029832767,-476.76821605,9.899e-05,2]
[347658349,1736029832780,-23.23178395,9.899e-05,2]
[347658351,1736029832789,-1000.0,9.9e-05,2]
[347658353,1736029832798,-762.7447,9.9e-05,2]
[347658355,1736029832807,-5000.0,9.9e-05,2]
[347658357,1736029832816,-186.17067999,9.9e-05,2]
[347658359,1736029832828,-813.82932001,9.9e-05,2]
[347658361,1736029832837,-500.0,9.909e-05,2]
[347658363,1736029832846,-467.07500599,9.909e-05,2]
[347658366,1736029832869,-32.92499401,9.909e-05,2]
[347658368,1736029832878,-500.0,9.909e-05,2]
[347658370,1736029832887,-500.0,9.909e-05,2]
[347658372,1736029832895,-500.0,9.909e-05,2]
[347658374,1736029832904,-500.0,9.909e-05,2]
[347658376,1736029832914,-500.0,9.909e-05,2]
[347658378,1736029832923,-500.0,9.909e-05,2]
[347658380,1736029832933,-500.0,9.909e-05,2]
[347658382,1736029832942,-500.0,9.909e-05,2]
[347658384,1736029832951,-500.0,9.909e-05,2]
[347658386,1736029832960,-500.0,9.909e-05,2]
[347658388,1736029832968,-500.0,9.909e-05,2]
[347658390,1736029832977,-500.0,9.909e-05,2]
[347658391,1736029832987,-464.26365919,9.909e-05,2]
[347658394,1736029832998,-35.73634081,9.909e-05,2]
[347658396,1736029833007,-500.0,9.909e-05,2]
[347658398,1736029833016,-111.25246159,9.909e-05,2]
[347658400,1736029833027,-191.39741146,9.909e-05,2]
[347658402,1736029833037,-500.0,9.909e-05,2]
[347658404,1736029833045,-500.0,9.909e-05,2]
[347658405,1736029833054,-500.0,9.909e-05,2]
[347658406,1736029833063,-500.0,9.909e-05,2]
[347658407,1736029833072,-500.0,9.909e-05,2]
[347658408,1736029833080,-500.0,9.909e-05,2]
[347658409,1736029833089,-500.0,9.909e-05,2]
[347658410,1736029833098,-500.0,9.909e-05,2]
[347658411,1736029833107,-500.0,9.909e-05,2]
[347658412,1736029833116,-500.0,9.909e-05,2]
[347658413,1736029833125,-500.0,9.909e-05,2]
[347658414,1736029833133,-500.0,9.909e-05,2]
[347658415,1736029833142,-500.0,9.909e-05,2]
[347658416,1736029833152,-500.0,9.909e-05,2]
[347658417,1736029833162,-500.0,9.909e-05,2]
[347658418,1736029833172,-8404.8146314,9.91e-05,2]
[347658419,1736029833183,-504.00266628,9.91e-05,2]
[347658420,1736029833198,-1244.15535,9.91e-05,2]
[347658421,1736029833209,-1303.491325,9.91e-05,2]
[347658850,1736029837513,-632.42,9.909e-05,2]
[347658852,1736029837522,-12261.4738511,9.91e-05,2]
[347658854,1736029837534,-18160.91084661,9.91e-05,2]
[347658856,1736029837543,-500.0,9.972e-05,2]
[347658858,1736029837552,-500.0,9.972e-05,2]
[347658860,1736029837564,-3212.3829625,9.996e-05,2]
[347658862,1736029837573,-500.0,9.996e-05,2]
[347658864,1736029837583,-500.0,9.996e-05,2]
[347658866,1736029837591,-500.0,9.996e-05,2]
[347658868,1736029837602,-500.0,9.996e-05,2]
[347658870,1736029837611,-500.0,9.996e-05,2]
[347658872,1736029837621,-500.0,9.996e-05,2]
[347658874,1736029837630,-500.0,9.996e-05,2]
[347658876,1736029837639,-500.0,9.996e-05,2]
[347658878,1736029837648,-500.0,9.996e-05,2]
[347658880,1736029837658,-500.0,9.996e-05,2]
[347658882,1736029837667,-500.0,9.996e-05,2]
[347658884,1736029837676,-401.71,9.996e-05,2]
[347658886,1736029837685,-612.69594199,9.996e-05,2]
[347658888,1736029837694,-379.03,9.996e-05,2]
[347658890,1736029837703,-500.0,9.996e-05,2]
[347658892,1736029837712,-500.0,9.996e-05,2]
[347658894,1736029837722,-500.0,9.996e-05,2]
[347658896,1736029837731,-500.0,9.996e-05,2]
[347658898,1736029837740,-356.79,9.996e-05,2]
[347658900,1736029837749,-289.29871139,9.996e-05,2]
[347658902,1736029837758,-500.0,9.996e-05,2]
[347658904,1736029837767,-429.78645827,9.996e-05,2]
[347658906,1736029837776,-500.0,9.997e-05,2]
[347658908,1736029837785,-500.0,9.997e-05,2]
[347658909,1736029837794,-500.0,9.997e-05,2]
[347658911,1736029837803,-500.0,9.997e-05,2]
[347658913,1736029837812,-500.0,9.997e-05,2]
[347658915,1736029837820,-500.0,9.997e-05,2]
[347658917,1736029837830,-500.0,9.997e-05,2]
[347658919,1736029837838,-589.80688888,9.997e-05,2]
[347658921,1736029837847,-500.0,9.997e-05,2]